fUSD/lending_fUSD_20260518
["ID","MTS","AMOUNT","RATE_DAILY","PERIOD"]
[422566208,1779094410000,264.00100518,0.00029725,120]
[422566209,1779094412000,198.00075388,0.00029725,120]
[422566211,1779094485000,156.78,8.927e-05,2]
[422566210,1779094485000,156.78,7.198e-05,2]
[422566216,1779094664000,500.0,0.00029452,120]
[422566217,1779094799000,150.0,0.00013639,120]
[422566230,1779095253000,550.936,0.00030136,120]
[422566231,1779095340000,1000.0,0.00030136,120]
[422566234,1779095362000,156.78,9.74e-05,2]
[422566233,1779095362000,156.78,6.579e-05,2]
[422566235,1779095384000,1000.0,0.00030137,120]
[422566241,1779095432000,-163.42,0.00010656,2]
[422566242,1779095432000,-150.0,0.00011508,2]
[422566240,1779095432000,-150.0,0.00010336,2]
[422566243,1779095432000,-250.0,0.00011722,2]
[422566245,1779095432000,-162.63,0.00012937,2]
[422566244,1779095432000,-156.78,0.000129,2]
[422566285,1779095433000,-500.0,0.00014249,2]
[422566274,1779095433000,-500.0,0.00014149,2]
[422566275,1779095433000,-15919.9977,0.00014149,2]
[422566277,1779095433000,-166.92,0.00014212,2]
[422566276,1779095433000,-400.0,0.000142,5]
[422566279,1779095433000,-236.47856403,0.00014249,2]
[422566280,1779095433000,-572.32579976,0.00014249,2]
[422566282,1779095433000,-500.0,0.00014249,2]
[422566284,1779095433000,-500.0,0.00014249,2]
[422566289,1779095433000,-112469.811255,0.0001425,2]
[422566278,1779095433000,-500.0,0.00014249,2]
[422566281,1779095433000,-500.0,0.00014249,2]
[422566288,1779095433000,-500.0,0.00014249,2]
[422566286,1779095433000,-500.0,0.00014249,2]
[422566273,1779095433000,-28841.2625,0.0001405,2]
[422566287,1779095433000,-500.0,0.00014249,2]
[422566291,1779095433000,-166.92,0.00014384,2]
[422566290,1779095433000,-900.0,0.000143,5]
[422566293,1779095433000,-6056.0,0.00014387,2]
[422566283,1779095433000,-500.0,0.00014249,2]
[422566272,1779095433000,-150.0,0.00014049,2]
[422566261,1779095433000,-166.92,0.00013699,2]
[422566263,1779095433000,-2000.0,0.00013765,2]
[422566292,1779095433000,-3632.0,0.00014387,2]
[422566247,1779095433000,-154.59,0.00013264,2]
[422566248,1779095433000,-1927.29,0.00013364,2]
[422566246,1779095433000,-730.55,0.00012979,2]
[422566255,1779095433000,-177.61,0.00013539,2]
[422566251,1779095433000,-163.0,0.000134,2]
[422566250,1779095433000,-163.0,0.000134,2]
[422566249,1779095433000,-304.0,0.00013397,2]
[422566254,1779095433000,-150.0,0.00013488,2]
[422566252,1779095433000,-1200.0,0.0001345,2]
[422566253,1779095433000,-27097.08,0.00013451,2]
[422566257,1779095433000,-500.0,0.00013605,2]
[422566258,1779095433000,-150.0,0.00013639,2]
[422566256,1779095433000,-204.91,0.00013605,2]
[422566259,1779095433000,-250.0,0.00013658,2]
[422566265,1779095433000,-166.92,0.0001387,2]
[422566267,1779095433000,-150.0,0.00013954,2]
[422566266,1779095433000,-62484.8415,0.0001395,2]
[422566270,1779095433000,-166.92,0.00014041,2]
[422566268,1779095433000,-500.0,0.00014,2]
[422566294,1779095433000,-1300.0,0.000144,5]
[422566311,1779095433000,-160.0,0.000147,2]
[422566296,1779095433000,-1755.44381586,0.000145,5]
[422566318,1779095433000,-2622.31857803,0.00014767,2]
[422566322,1779095433000,-1680.0,0.00014795,2]
[422566324,1779095433000,-910.78222874,0.00014799,2]
[422566327,1779095433000,-2622.31857803,0.000148,2]
[422566323,1779095433000,-485.47662152,0.00014799,2]
[422566325,1779095433000,-1872.07836152,0.00014799,2]
[422566326,1779095433000,-1042.916,0.000148,2]
[422566329,1779095433000,-3226.8096095,0.00014814,2]
[422566328,1779095433000,-400.0,0.000148,5]
[422566331,1779095433000,-500.0,0.00014249,2]
[422566330,1779095433000,-500.0,0.00014249,2]
[422566332,1779095433000,-500.0,0.00014249,2]
[422566336,1779095433000,-500.0,0.00014249,2]
[422566339,1779095433000,-1133.341096,0.00014833,2]
[422566335,1779095433000,-306.2002,0.00014249,2]
[422566334,1779095433000,-193.7998,0.00014249,2]
[422566338,1779095433000,-31.1581236,0.00014833,2]
[422566337,1779095433000,-212.68887636,0.00014814,2]
[422566295,1779095433000,-44.55618414,0.000145,5]
[422566319,1779095433000,-3439.49848586,0.00014771,2]
[422566321,1779095433000,-254.77568,0.00014773,2]
[422566333,1779095433000,-500.0,0.00014249,2]
[422566315,1779095433000,-2622.31857803,0.00014733,2]
[422566320,1779095433000,-321.0,0.00014772,2]
[422566297,1779095433000,-2622.31857806,0.000146,2]
[422566299,1779095433000,-684.41496529,0.000146,5]
[422566298,1779095433000,-3439.49848589,0.000146,2]
[422566300,1779095433000,-1515.58503471,0.000146,5]
[422566302,1779095433000,-3439.49848586,0.00014643,2]
[422566303,1779095433000,-2622.31857803,0.00014667,2]
[422566304,1779095433000,-3439.49848586,0.00014686,2]
[422566308,1779095433000,-2622.31857803,0.000147,2]
[422566306,1779095433000,-400.0,0.000147,5]
[422566301,1779095433000,-2622.31857803,0.00014633,2]
[422566309,1779095433000,-163.7831,0.000147,2]
[422566307,1779095433000,-184.12125,0.000147,2]
[422566340,1779095433000,-1176.69,0.00014833,2]
[422566310,1779095433000,-234.17553513,0.000147,2]
[422566312,1779095433000,-249.839599,0.000147,2]
[422566314,1779095433000,-3439.49848586,0.00014729,2]
[422566313,1779095433000,-339.679198,0.000147,2]
[422566316,1779095433000,-321.0,0.00014745,2]
[422566305,1779095433000,-500.0,0.00014698,2]
[422566317,1779095433000,-321.0,0.0001475,2]
[422566341,1779095435000,345.87293093,0.00030136,120]
[422566389,1779095438000,-185.0,0.00014913,2]
[422566387,1779095438000,-250.0,0.00014913,2]
[422566384,1779095438000,-2622.31857803,0.000149,2]
[422566383,1779095438000,-888.083031,0.000149,2]
[422566385,1779095438000,-3439.49848586,0.000149,2]
[422566380,1779095438000,-5000.0,0.000149,2]
[422566382,1779095438000,-400.0,0.000149,5]
[422566375,1779095438000,-152.0,0.00014858,7]
[422566378,1779095438000,-200.0,0.0001488,2]
[422566388,1779095438000,-243.621,0.00014913,2]
[422566381,1779095438000,-795.381039,0.000149,2]
[422566386,1779095438000,-290.88615179,0.00014908,2]
[422566394,1779095438000,-1270.0,0.00014913,2]
[422566402,1779095438000,-400.84192513,0.0001497,2]
[422566392,1779095438000,-625.0,0.00014913,2]
[422566391,1779095438000,-1354.0,0.00014913,2]
[422566393,1779095438000,-927.0,0.00014913,2]
[422566396,1779095438000,-150.0,0.00014925,2]
[422566395,1779095438000,-1224.0,0.00014913,2]
[422566397,1779095438000,-195.0,0.00014935,2]
[422566399,1779095438000,-700.0,0.0001497,2]
[422566401,1779095438000,-700.0,0.0001497,2]
[422566400,1779095438000,-400.0,0.0001497,2]
[422566403,1779095438000,-700.0,0.0001497,2]
[422566405,1779095438000,-1120.37187793,0.0001497,2]
[422566377,1779095438000,-186.413945,0.00014879,2]
[422566390,1779095438000,-3544.0,0.00014913,2]
[422566379,1779095438000,-814.38444042,0.000149,2]
[422566354,1779095438000,-500.0,0.00014249,2]
[422566374,1779095438000,-3439.49848586,0.00014857,2]
[422566347,1779095438000,-500.0,0.00014249,2]
[422566349,1779095438000,-500.0,0.00014249,2]
[422566348,1779095438000,-500.0,0.00014249,2]
[422566351,1779095438000,-500.0,0.00014249,2]
[422566352,1779095438000,-500.0,0.00014249,2]
[422566350,1779095438000,-500.0,0.00014249,2]
[422566404,1779095438000,-700.0,0.0001497,2]
[422566353,1779095438000,-500.0,0.00014249,2]
[422566355,1779095438000,-500.0,0.00014249,2]
[422566357,1779095438000,-500.0,0.00014249,2]
[422566358,1779095438000,-500.0,0.00014249,2]
[422566356,1779095438000,-500.0,0.00014249,2]
[422566359,1779095438000,-500.0,0.00014249,2]
[422566360,1779095438000,-500.0,0.00014249,2]
[422566361,1779095438000,-500.0,0.00014249,2]
[422566363,1779095438000,-500.0,0.00014249,2]
[422566364,1779095438000,-243.8516175,0.00014249,2]
[422566368,1779095438000,-500.0,0.00014249,2]
[422566366,1779095438000,-500.0,0.00014249,2]
[422566367,1779095438000,-500.0,0.00014249,2]
[422566365,1779095438000,-500.0,0.00014249,2]
[422566362,1779095438000,-500.0,0.00014249,2]
[422566369,1779095438000,-500.0,0.00014249,2]
[422566371,1779095438000,-156.11702342,0.000147,2]
[422566373,1779095438000,-500.0,0.00014848,2]
[422566372,1779095438000,-281.12935843,0.00014833,2]
[422566370,1779095438000,-500.0,0.00014249,2]
[422566376,1779095438000,-2622.31857803,0.00014867,2]
[422566407,1779095438000,-303.89,0.00014985,2]
[422566398,1779095438000,-700.0,0.0001497,2]
[422566406,1779095438000,-373.57,0.00014985,2]
[422566442,1779095438000,-500.0,0.00014999,2]
[422566441,1779095438000,-500.0,0.00014999,2]
[422566443,1779095438000,-500.0,0.00014999,2]
[422566445,1779095438000,-500.0,0.00014999,2]
[422566446,1779095438000,-500.0,0.00014999,2]
[422566444,1779095438000,-500.0,0.00014999,2]
[422566447,1779095438000,-500.0,0.00014999,2]
[422566448,1779095438000,-500.0,0.00014999,2]
[422566449,1779095438000,-500.0,0.00014999,2]
[422566453,1779095438000,-500.0,0.00014999,2]
[422566452,1779095438000,-500.0,0.00014999,2]
[422566451,1779095438000,-500.0,0.00014999,2]
[422566454,1779095438000,-200.16128818,0.00014999,2]
[422566437,1779095438000,-500.0,0.00014999,2]
[422566455,1779095438000,-500.0,0.00014999,2]
[422566457,1779095438000,-500.0,0.00014999,2]
[422566460,1779095438000,-500.0,0.00014999,2]
[422566459,1779095438000,-500.0,0.00014999,2]
[422566458,1779095438000,-500.0,0.00014999,2]
[422566462,1779095438000,-500.0,0.00014999,2]
[422566463,1779095438000,-500.0,0.00014999,2]
[422566461,1779095438000,-500.0,0.00014999,2]
[422566464,1779095438000,-500.0,0.00014999,2]
[422566465,1779095438000,-500.0,0.00014999,2]
[422566467,1779095438000,-300.0,0.00014999,2]
[422566468,1779095438000,-238.8923524,0.00014999,2]
[422566408,1779095438000,-429.11341582,0.0001499,2]
[422566466,1779095438000,-300.0,0.00014999,2]
[422566456,1779095438000,-500.0,0.00014999,2]
[422566440,1779095438000,-500.0,0.00014999,2]
[422566450,1779095438000,-500.0,0.00014999,2]
[422566438,1779095438000,-500.0,0.00014999,2]
[422566409,1779095438000,-429.11341582,0.0001499,2]
[422566410,1779095438000,-429.11341582,0.0001499,2]
[422566439,1779095438000,-500.0,0.00014999,2]
[422566411,1779095438000,-151.0,0.00014997,2]
[422566412,1779095438000,-500.0,0.00014997,2]
[422566413,1779095438000,-500.0,0.00014997,2]
[422566416,1779095438000,-474.68774602,0.00014997,2]
[422566415,1779095438000,-500.0,0.00014997,2]
[422566418,1779095438000,-500.0,0.00014997,2]
[422566419,1779095438000,-500.0,0.00014997,2]
[422566420,1779095438000,-485.91958294,0.00014997,2]
[422566414,1779095438000,-399.3458632,0.00014997,2]
[422566422,1779095438000,-500.0,0.00014997,2]
[422566424,1779095438000,-500.0,0.00014997,2]
[422566421,1779095438000,-500.0,0.00014997,2]
[422566425,1779095438000,-500.0,0.00014997,2]
[422566436,1779095438000,-500.0,0.00014999,2]
[422566434,1779095438000,-1102.65356766,0.00014999,5]
[422566423,1779095438000,-500.0,0.00014997,2]
[422566433,1779095438000,-679.57534123,0.00014999,2]
[422566432,1779095438000,-1102.65356766,0.00014999,5]
[422566429,1779095438000,-155511.5312903,0.00014998,2]
[422566431,1779095438000,-969.1641203,0.00014998,2]
[422566435,1779095438000,-500.0,0.00014999,2]
[422566428,1779095438000,-629.1078555,0.00014998,2]
[422566426,1779095438000,-318.38955378,0.00014997,2]
[422566427,1779095438000,-500.0,0.00014997,2]
[422566430,1779095438000,-962.9800708,0.00014998,2]
[422566503,1779095439000,-151.0,0.00015,2]
[422566512,1779095439000,-151.0,0.00015068,2]
[422566511,1779095439000,-182.806369,0.00015068,2]
[422566509,1779095439000,-151.0,0.00015068,2]
[422566510,1779095439000,-151.0,0.00015068,2]
[422566508,1779095439000,-151.0,0.00015068,2]
[422566504,1779095439000,-166.39631,0.00015,2]
[422566501,1779095439000,-1004.00810762,0.00015,2]
[422566506,1779095439000,-1517.39572809,0.00015,2]
[422566505,1779095439000,-1000.0,0.00015,2]
[422566513,1779095439000,-151.0,0.00015068,2]
[422566507,1779095439000,-151.0,0.00015068,2]
[422566514,1779095439000,-151.0,0.00015068,2]
[422566529,1779095439000,-300.0,0.00016,2]
[422566515,1779095439000,-255.0,0.00015173,2]
[422566520,1779095439000,-11688.87041325,0.00015471,2]
[422566519,1779095439000,-216.94,0.00015464,2]
[422566517,1779095439000,-163.0,0.00015341,2]
[422566516,1779095439000,-177.61,0.00015231,2]
[422566525,1779095439000,-7668.66709228,0.00015578,2]
[422566523,1779095439000,-169.963593,0.00015552,2]
[422566522,1779095439000,-160.0,0.00015552,2]
[422566524,1779095439000,-179.927186,0.00015552,2]
[422566526,1779095439000,-4474.91678066,0.0001579,2]
[422566530,1779095439000,-1830.962601,0.00016,2]
[422566528,1779095439000,-242.0,0.00016,2]
[422566502,1779095439000,-151.0,0.00015,2]
[422566518,1779095439000,-340.690362,0.00015435,2]
[422566499,1779095439000,-190.38812,0.00015,2]
[422566472,1779095439000,-671.07197812,0.00014999,2]
[422566500,1779095439000,-308.0,0.00015,2]
[422566531,1779095439000,-267.52388728,0.00016,2]
[422566473,1779095439000,-559.0,0.00015,5]
[422566471,1779095439000,-300.0,0.00014999,2]
[422566470,1779095439000,-666.0,0.00014999,2]
[422566469,1779095439000,-300.0,0.00014999,2]
[422566474,1779095439000,-446.0,0.00015,5]
[422566478,1779095439000,-120988.73350723,0.00015,2]
[422566475,1779095439000,-150.0,0.00015,2]
[422566476,1779095439000,-2464994.22796275,0.00015,2]
[422566477,1779095439000,-1258.13,0.00015,2]
[422566481,1779095439000,-233.12534026,0.00015,2]
[422566482,1779095439000,-151.0,0.00015,2]
[422566479,1779095439000,-151.55626079,0.00015,2]
[422566480,1779095439000,-152.0,0.00015,2]
[422566483,1779095439000,-1000.0,0.00015,2]
[422566485,1779095439000,-1142.6090675,0.00015,2]
[422566484,1779095439000,-1000.0,0.00015,2]
[422566486,1779095439000,-3518681.10010545,0.00015,2]
[422566488,1779095439000,-660862.96694661,0.00015,2]
[422566487,1779095439000,-7198205.09849214,0.00015,2]
[422566491,1779095439000,-14127.00825507,0.00015,2]
[422566489,1779095439000,-314.0,0.00015,2]
[422566490,1779095439000,-1084.88168378,0.00015,2]
[422566495,1779095439000,-234.36955,0.00015,2]
[422566493,1779095439000,-200.0,0.00015,2]
[422566494,1779095439000,-234.36955,0.00015,2]
[422566496,1779095439000,-234.36955,0.00015,2]
[422566492,1779095439000,-19935.65756496,0.00015,3]
[422566497,1779095439000,-190.38811,0.00015,2]
[422566498,1779095439000,-190.38812,0.00015,2]
[422566532,1779095439000,-809.34080542,0.0001611,15]
[422566521,1779095439000,-2000.0,0.00015486,2]
[422566534,1779095439000,-6247.84,0.00016116,2]
[422566567,1779095439000,-282.868153,0.00016438,2]
[422566569,1779095439000,-282.868153,0.00016438,2]
[422566568,1779095439000,-282.868153,0.00016438,2]
[422566575,1779095439000,-282.868153,0.00016438,2]
[422566574,1779095439000,-282.868153,0.00016438,2]
[422566571,1779095439000,-282.868153,0.00016438,2]
[422566570,1779095439000,-282.868153,0.00016438,2]
[422566573,1779095439000,-282.868153,0.00016438,2]
[422566572,1779095439000,-282.868153,0.00016438,2]
[422566576,1779095439000,-282.868153,0.00016438,2]
[422566578,1779095439000,-183.27,0.00016483,2]
[422566579,1779095439000,-6610.14028822,0.000165,2]
[422566577,1779095439000,-354.58,0.00016438,2]
[422566566,1779095439000,-282.868153,0.00016438,2]
[422566580,1779095439000,-7432.72693047,0.000165,2]
[422566585,1779095439000,-177.158988,0.00016905,2]
[422566581,1779095439000,-1258.13,0.000165,2]
[422566583,1779095439000,-169.84,0.00016712,2]
[422566586,1779095439000,-260.548936,0.00016915,2]
[422566587,1779095439000,-300.0,0.00016921,2]
[422566584,1779095439000,-1866.30907936,0.00016894,2]
[422566588,1779095439000,-300.0,0.00016921,2]
[422566591,1779095439000,-300.0,0.00016921,2]
[422566589,1779095439000,-300.0,0.00016921,2]
[422566592,1779095439000,-999.99,0.00016922,2]
[422566590,1779095439000,-417.13114333,0.00016921,2]
[422566593,1779095439000,-177.61,0.00016924,2]
[422566533,1779095439000,-9999.99,0.00016116,2]
[422566582,1779095439000,-150.0,0.00016517,2]
[422566565,1779095439000,-282.868153,0.00016438,2]
[422566594,1779095439000,-1866.30907936,0.00016925,2]
[422566563,1779095439000,-154.25526034,0.00016438,2]
[422566564,1779095439000,-229.97,0.00016438,2]
[422566536,1779095439000,-150.99,0.00016116,2]
[422566535,1779095439000,-604.43,0.00016116,2]
[422566537,1779095439000,-1220.64,0.00016116,2]
[422566538,1779095439000,-1578.79,0.00016116,2]
[422566539,1779095439000,-1215.76,0.00016116,2]
[422566540,1779095439000,-299.99,0.00016116,4]
[422566541,1779095439000,-4518.78,0.00016116,2]
[422566544,1779095439000,-1151.0,0.00016275,2]
[422566547,1779095439000,-433.0,0.00016381,2]
[422566542,1779095439000,-9999.99,0.00016116,2]
[422566543,1779095439000,-4999.99,0.00016116,2]
[422566546,1779095439000,-200.0,0.0001634,2]
[422566545,1779095439000,-231.768536,0.00016329,2]
[422566527,1779095439000,-160.2157493,0.00015937,2]
[422566551,1779095439000,-221.316405,0.00016438,2]
[422566562,1779095439000,-152.33243553,0.00016438,2]
[422566559,1779095439000,-221.316405,0.00016438,2]
[422566556,1779095439000,-221.316405,0.00016438,2]
[422566558,1779095439000,-221.316405,0.00016438,2]
[422566552,1779095439000,-221.316405,0.00016438,2]
[422566555,1779095439000,-221.316405,0.00016438,2]
[422566561,1779095439000,-221.316405,0.00016438,2]
[422566557,1779095439000,-221.316405,0.00016438,2]
[422566553,1779095439000,-221.316405,0.00016438,2]
[422566554,1779095439000,-221.316405,0.00016438,2]
[422566550,1779095439000,-221.316405,0.00016438,2]
[422566549,1779095439000,-151.0,0.00016438,2]
[422566548,1779095439000,-1040.7,0.00016438,2]
[422566560,1779095439000,-221.316405,0.00016438,2]
[422566641,1779095440000,-888.083031,0.000174,2]
[422566638,1779095440000,-2000.0,0.00017207,2]
[422566640,1779095440000,-6056.0,0.00017387,2]
[422566635,1779095440000,-1866.30907936,0.00017196,2]
[422566642,1779095440000,-300.0,0.00017526,2]
[422566628,1779095440000,-1866.30907936,0.00017172,2]
[422566639,1779095440000,-3632.0,0.00017387,2]
[422566633,1779095440000,-1866.30907936,0.00017191,2]
[422566630,1779095440000,-1866.30907936,0.00017176,2]
[422566632,1779095440000,-1866.30907936,0.00017183,2]
[422566631,1779095440000,-1866.30907936,0.00017179,2]
[422566636,1779095440000,-1866.30907936,0.00017198,2]
[422566634,1779095440000,-1866.30907936,0.00017194,2]
[422566651,1779095440000,-244.94691343,0.00017527,2]
[422566644,1779095440000,-174.61919141,0.00017527,2]
[422566643,1779095440000,-300.0,0.00017526,2]
[422566647,1779095440000,-500.0,0.00017527,2]
[422566645,1779095440000,-200.0,0.00017527,2]
[422566649,1779095440000,-500.0,0.00017527,2]
[422566652,1779095440000,-500.0,0.00017527,2]
[422566646,1779095440000,-721.12765535,0.00017527,2]
[422566650,1779095440000,-500.0,0.00017527,2]
[422566648,1779095440000,-500.0,0.00017527,2]
[422566653,1779095440000,-200.0,0.00017527,2]
[422566654,1779095440000,-500.0,0.00017527,2]
[422566655,1779095440000,-500.0,0.00017527,2]
[422566629,1779095440000,-1866.30907936,0.00017173,2]
[422566637,1779095440000,-1866.30907936,0.000172,2]
[422566625,1779095440000,-1866.30907936,0.00017137,2]
[422566612,1779095440000,-1866.30907936,0.00017054,2]
[422566624,1779095440000,-416.36717684,0.00017137,2]
[422566656,1779095440000,-500.0,0.00017527,2]
[422566596,1779095440000,-1866.30907936,0.00016941,2]
[422566595,1779095440000,-1866.30907936,0.00016939,2]
[422566597,1779095440000,-1866.30907936,0.00016944,2]
[422566598,1779095440000,-1866.30907936,0.00016963,2]
[422566599,1779095440000,-1866.30907936,0.00016965,2]
[422566600,1779095440000,-1866.30907936,0.00016971,2]
[422566601,1779095440000,-1866.30907936,0.00016984,2]
[422566602,1779095440000,-1866.30907936,0.00016986,2]
[422566603,1779095440000,-1866.30907936,0.00016989,2]
[422566605,1779095440000,-1866.30907936,0.00016998,2]
[422566604,1779095440000,-1866.30907936,0.00016993,2]
[422566606,1779095440000,-1866.30907936,0.00017034,2]
[422566627,1779095440000,-1866.30907936,0.00017159,2]
[422566607,1779095440000,-1866.30907936,0.00017037,2]
[422566608,1779095440000,-1866.30907936,0.0001704,2]
[422566610,1779095440000,-1866.30907936,0.00017052,2]
[422566615,1779095440000,-1866.30907936,0.00017092,2]
[422566616,1779095440000,-152.973321,0.00017092,2]
[422566614,1779095440000,-1866.30907936,0.00017058,2]
[422566617,1779095440000,-1866.30907936,0.00017092,2]
[422566619,1779095440000,-500.0,0.0001711,2]
[422566620,1779095440000,-1866.30907936,0.00017112,2]
[422566618,1779095440000,-1866.30907936,0.00017103,2]
[422566622,1779095440000,-1866.30907936,0.00017118,2]
[422566623,1779095440000,-1866.30907936,0.0001712,2]
[422566621,1779095440000,-1866.30907936,0.00017114,2]
[422566626,1779095440000,-1866.30907936,0.0001715,2]
[422566609,1779095440000,-1866.30907936,0.00017046,2]
[422566658,1779095440000,-500.0,0.00017527,2]
[422566661,1779095440000,-578.20924308,0.00017527,2]
[422566662,1779095440000,-220.24226132,0.00017527,2]
[422566691,1779095440000,-151.0,0.00017527,2]
[422566695,1779095440000,-151.0,0.00017527,2]
[422566698,1779095440000,-151.0,0.00017527,2]
[422566694,1779095440000,-151.0,0.00017527,2]
[422566699,1779095440000,-151.0,0.00017527,2]
[422566701,1779095440000,-152.0,0.00017527,2]
[422566697,1779095440000,-151.0,0.00017527,2]
[422566700,1779095440000,-152.0,0.00017527,2]
[422566696,1779095440000,-151.0,0.00017527,2]
[422566702,1779095440000,-233.36287015,0.00017527,2]
[422566703,1779095440000,-152.0,0.00017527,2]
[422566704,1779095440000,-152.0,0.00017527,2]
[422566705,1779095440000,-152.0,0.00017527,2]
[422566707,1779095440000,-152.0,0.00017527,2]
[422566708,1779095440000,-743.50770149,0.00017527,2]
[422566706,1779095440000,-152.0,0.00017527,2]
[422566713,1779095440000,-1000.0,0.00017527,2]
[422566709,1779095440000,-152.0,0.00017527,2]
[422566711,1779095440000,-152.0,0.00017527,2]
[422566710,1779095440000,-152.0,0.00017527,2]
[422566714,1779095440000,-417.08868445,0.00017527,2]
[422566712,1779095440000,-152.0,0.00017527,2]
[422566715,1779095440000,-151.0,0.00017527,2]
[422566716,1779095440000,-282.868153,0.00017527,2]
[422566718,1779095440000,-282.868153,0.00017527,2]
[422566717,1779095440000,-282.868153,0.00017527,2]
[422566660,1779095440000,-500.0,0.00017527,2]
[422566693,1779095440000,-209.40437684,0.00017527,2]
[422566692,1779095440000,-151.0,0.00017527,2]
[422566719,1779095440000,-282.868153,0.00017527,2]
[422566689,1779095440000,-151.0,0.00017527,2]
[422566690,1779095440000,-151.0,0.00017527,2]
[422566659,1779095440000,-500.0,0.00017527,2]
[422566663,1779095440000,-209.40437684,0.00017527,2]
[422566664,1779095440000,-2080.17592889,0.00017527,2]
[422566665,1779095440000,-151.0,0.00017527,2]
[422566667,1779095440000,-151.0,0.00017527,2]
[422566668,1779095440000,-151.0,0.00017527,2]
[422566666,1779095440000,-1428.38747117,0.00017527,2]
[422566669,1779095440000,-151.0,0.00017527,2]
[422566670,1779095440000,-151.0,0.00017527,2]
[422566672,1779095440000,-151.0,0.00017527,2]
[422566673,1779095440000,-151.0,0.00017527,2]
[422566671,1779095440000,-151.0,0.00017527,2]
[422566676,1779095440000,-151.0,0.00017527,2]
[422566657,1779095440000,-500.0,0.00017527,2]
[422566675,1779095440000,-151.0,0.00017527,2]
[422566677,1779095440000,-151.0,0.00017527,2]
[422566683,1779095440000,-151.0,0.00017527,2]
[422566685,1779095440000,-151.0,0.00017527,2]
[422566688,1779095440000,-151.0,0.00017527,2]
[422566686,1779095440000,-151.0,0.00017527,2]
[422566684,1779095440000,-151.0,0.00017527,2]
[422566687,1779095440000,-279.9045709,0.00017527,2]
[422566679,1779095440000,-151.0,0.00017527,2]
[422566681,1779095440000,-151.0,0.00017527,2]
[422566680,1779095440000,-151.0,0.00017527,2]
[422566678,1779095440000,-151.0,0.00017527,2]
[422566674,1779095440000,-151.0,0.00017527,2]
[422566682,1779095440000,-151.0,0.00017527,2]
[422566763,1779095441000,-500.0,0.00017808,2]
[422566761,1779095441000,-500.0,0.00017808,2]
[422566760,1779095441000,-500.0,0.00017808,2]
[422566758,1779095441000,-500.0,0.00017808,2]
[422566755,1779095441000,-500.0,0.00017808,2]
[422566757,1779095441000,-500.0,0.00017808,2]
[422566753,1779095441000,-500.0,0.00017808,2]
[422566752,1779095441000,-500.0,0.00017808,2]
[422566754,1779095441000,-500.0,0.00017808,2]
[422566762,1779095441000,-500.0,0.00017808,2]
[422566756,1779095441000,-500.0,0.00017808,2]
[422566748,1779095441000,-500.0,0.00017808,2]
[422566769,1779095441000,-500.0,0.00017808,2]
[422566766,1779095441000,-500.0,0.00017808,2]
[422566764,1779095441000,-500.0,0.00017808,2]
[422566767,1779095441000,-500.0,0.00017808,2]
[422566765,1779095441000,-500.0,0.00017808,2]
[422566768,1779095441000,-500.0,0.00017808,2]
[422566772,1779095441000,-500.0,0.00017808,2]
[422566770,1779095441000,-500.0,0.00017808,2]
[422566773,1779095441000,-500.0,0.00017808,2]
[422566774,1779095441000,-500.0,0.00017808,2]